[Event "Titled Tuesday Blitz July 11 Early 2023"]
[White "Hartikainen, Jarmo"]
[Black "Kowalysko, Roman"]
[WhiteFideId "503134"]
[BlackFideId "30918510"]
[WhiteElo "2144"]
[BlackElo "2053"]
[Result "0-1"]
[Round "7"]
[TimeControl "180+2"]
[Date "2023.07.11"]
[WhiteClock "0:00:03"]
[BlackClock "0:01:32"]
[Board "182"]

1. e4 {[%clk 0:03:00]}  e5 {[%clk 0:02:59]} 2. Nf3 {[%clk 0:03:00]}  Nc6 {[%clk 0:02:59]} 3. Bc4 {[%clk 0:03:00]}  Nf6 {[%clk 0:02:59]} 4. Ng5 {[%clk 0:03:00]}  d5 {[%clk 0:03:00]} 5. exd5 {[%clk 0:03:00]}  Nxd5 {[%clk 0:03:00]} 6. Nxf7 {[%clk 0:02:59]}  Kxf7 {[%clk 0:03:00]} 7. Qf3+ {[%clk 0:02:58]}  Ke6 {[%clk 0:03:01]} 8. Nc3 {[%clk 0:02:58]}  Nb4 {[%clk 0:03:01]} 9. O-O {[%clk 0:02:52]}  c6 {[%clk 0:02:57]} 10. Bb3 {[%clk 0:02:40]}  Qf6 {[%clk 0:02:47]} 11. Nxd5 {[%clk 0:01:26]}  Nxd5 {[%clk 0:02:46]} 12. Qe2 {[%clk 0:01:16]}  Kd7 {[%clk 0:02:40]} 13. d4 {[%clk 0:00:59]}  exd4 {[%clk 0:02:24]} 14. Rd1 {[%clk 0:00:26]}  Bd6 {[%clk 0:02:24]} 15. Bxd5 {[%clk 0:00:20]}  cxd5 {[%clk 0:02:23]} 16. Qg4+ {[%clk 0:00:20]}  Kc7 {[%clk 0:02:15]} 17. Qxd4 {[%clk 0:00:20]}  Qxd4 {[%clk 0:02:15]} 18. Rxd4 {[%clk 0:00:20]}  Re8 {[%clk 0:02:05]} 19. Be3 {[%clk 0:00:20]}  Bc5 {[%clk 0:02:00]} 20. Rxd5 {[%clk 0:00:19]}  Bxe3 {[%clk 0:02:00]} 21. fxe3 {[%clk 0:00:19]}  Rxe3 {[%clk 0:02:00]} 22. Rf1 {[%clk 0:00:20]}  Be6 {[%clk 0:01:59]} 23. Rc5+ {[%clk 0:00:18]}  Kb6 {[%clk 0:01:48]} 24. Rg5 {[%clk 0:00:13]}  g6 {[%clk 0:01:41]} 25. Kf2 {[%clk 0:00:11]}  Rf8+ {[%clk 0:01:38]} 26. Kxe3 {[%clk 0:00:11]}  Rxf1 {[%clk 0:01:38]} 27. b3 {[%clk 0:00:12]}  Bf5 {[%clk 0:01:34]} 28. c4 {[%clk 0:00:11]}  Ra1 {[%clk 0:01:34]} 29. g4 {[%clk 0:00:11]}  Bd7 {[%clk 0:01:32]} 30. a4 {[%clk 0:00:09]}  Ra3 {[%clk 0:01:32]} 31. Kd4 {[%clk 0:00:07]}  Rxb3 {[%clk 0:01:32]} 32. c5+ {[%clk 0:00:07]}  Kc7 {[%clk 0:01:33]} 33. h4 {[%clk 0:00:05]}  Rb4+ {[%clk 0:01:33]} 34. Ke5 {[%clk 0:00:04]}  Rxg4 {[%clk 0:01:33]} 35. Rxg4 {[%clk 0:00:03]}  Bxg4 {[%clk 0:01:34]} 36. Kf6 {[%clk 0:00:03]}  h5 {[%clk 0:01:31]} 37. Kxg6 {[%clk 0:00:03]}  Kc6 {[%clk 0:01:32]} 38. Kf6 {[%clk 0:00:02]}  Kxc5 {[%clk 0:01:32]} 39. Ke5 {[%clk 0:00:03]}  Kb4 {[%clk 0:01:33]} 40. Kd6 {[%clk 0:00:03]}  Kxa4 {[%clk 0:01:33]} 41. Kc7 {[%clk 0:00:04]}  b5 {[%clk 0:01:34]} 42. Kb7 {[%clk 0:00:03]}  b4 {[%clk 0:01:34]} 43. Kxa7 {[%clk 0:00:03]}  b3 {[%clk 0:01:35]} 44. Ka6 {[%clk 0:00:04]}  b2 {[%clk 0:01:35]} 45. Ka7 {[%clk 0:00:04]}  b1=Q {[%clk 0:01:33]} 46. Ka6 {[%clk 0:00:05]}  Bf3 {[%clk 0:01:31]} 47. Ka7 {[%clk 0:00:03]}  Qb7# {[%clk 0:01:32]} 0-1


[Site "https://www.chess.com"]

[Event "Titled Tuesday Blitz July 11 Early 2023"]
[White "Aravindh, Chithambaram VR."]
[Black "Firouzja, Alireza"]
[WhiteFideId "5072786"]
[BlackFideId "12573981"]
[WhiteElo "2947"]
[BlackElo "3089"]
[Result "0-1"]
[Round "8"]
[TimeControl "180+2"]
[Date "2023.07.11"]
[WhiteClock "0:00:11"]
[BlackClock "0:01:52"]
[Board "2"]

1. d4 {[%clk 0:03:00]}  Nf6 {[%clk 0:03:00]} 2. Nf3 {[%clk 0:03:01]}  g6 {[%clk 0:03:00]} 3. g3 {[%clk 0:02:59]}  Bg7 {[%clk 0:03:00]} 4. Bg2 {[%clk 0:03:00]}  O-O {[%clk 0:03:01]} 5. O-O {[%clk 0:03:01]}  d6 {[%clk 0:03:02]} 6. Nc3 {[%clk 0:03:00]}  Nbd7 {[%clk 0:03:02]} 7. a4 {[%clk 0:02:59]}  e5 {[%clk 0:03:02]} 8. dxe5 {[%clk 0:02:59]}  dxe5 {[%clk 0:03:03]} 9. Nd2 {[%clk 0:02:58]}  a5 {[%clk 0:02:59]} 10. Nc4 {[%clk 0:02:56]}  Re8 {[%clk 0:02:58]} 11. b3 {[%clk 0:02:43]}  e4 {[%clk 0:02:51]} 12. Bb2 {[%clk 0:02:42]}  b6 {[%clk 0:02:40]} 13. Nxe4 {[%clk 0:02:12]}  Nxe4 {[%clk 0:02:40]} 14. Bxg7 {[%clk 0:02:11]}  Kxg7 {[%clk 0:02:40]} 15. Qd5 {[%clk 0:02:04]}  c6 {[%clk 0:02:36]} 16. Qxc6 {[%clk 0:01:45]}  Rb8 {[%clk 0:02:36]} 17. Rad1 {[%clk 0:01:39]}  Re6 {[%clk 0:02:19]} 18. Qxe6 {[%clk 0:01:07]}  fxe6 {[%clk 0:02:19]} 19. Bxe4 {[%clk 0:01:08]}  Qc7 {[%clk 0:02:18]} 20. Nd6 {[%clk 0:01:06]}  Nf6 {[%clk 0:02:18]} 21. c4 {[%clk 0:00:51]}  e5 {[%clk 0:02:11]} 22. Bg2 {[%clk 0:00:51]}  Bg4 {[%clk 0:02:08]} 23. Nb5 {[%clk 0:00:50]}  Qe7 {[%clk 0:02:07]} 24. f3 {[%clk 0:00:41]}  Be6 {[%clk 0:02:03]} 25. Rd6 {[%clk 0:00:35]}  Rd8 {[%clk 0:01:58]} 26. Rfd1 {[%clk 0:00:33]}  Rxd6 {[%clk 0:01:58]} 27. Rxd6 {[%clk 0:00:33]}  Ne8 {[%clk 0:01:58]} 28. Rd3 {[%clk 0:00:29]}  Qc5+ {[%clk 0:01:55]} 29. Kf1 {[%clk 0:00:11]}  Nf6 {[%clk 0:01:52]} 0-1


[Site "https://www.chess.com"]

[Event "Titled Tuesday Blitz July 11 Early 2023"]
[White "Tang, Andrew"]
[Black "Kollars, Dmitrij"]
[WhiteFideId "2059630"]
[BlackFideId "12909572"]
[WhiteElo "2920"]
[BlackElo "3011"]
[Result "1/2-1/2"]
[Round "8"]
[TimeControl "180+2"]
[Date "2023.07.11"]
[WhiteClock "0:00:02"]
[BlackClock "0:00:05"]
[Board "6"]

1. d4 {[%clk 0:03:00]}  d5 {[%clk 0:02:57]} 2. Bf4 {[%clk 0:03:00]}  Nf6 {[%clk 0:02:55]} 3. e3 {[%clk 0:03:01]}  c5 {[%clk 0:02:55]} 4. dxc5 {[%clk 0:02:56]}  e6 {[%clk 0:02:51]} 5. b4 {[%clk 0:02:56]}  Bd7 {[%clk 0:02:51]} 6. Nd2 {[%clk 0:01:40]}  a5 {[%clk 0:02:43]} 7. a3 {[%clk 0:01:41]}  b6 {[%clk 0:02:38]} 8. cxb6 {[%clk 0:01:33]}  axb4 {[%clk 0:02:38]} 9. Bc7 {[%clk 0:01:30]}  Qc8 {[%clk 0:02:34]} 10. axb4 {[%clk 0:01:29]}  Rxa1 {[%clk 0:02:28]} 11. Qxa1 {[%clk 0:01:30]}  Bxb4 {[%clk 0:02:29]} 12. c3 {[%clk 0:01:09]}  Be7 {[%clk 0:02:29]} 13. Ngf3 {[%clk 0:00:52]}  O-O {[%clk 0:02:28]} 14. Qa8 {[%clk 0:00:35]}  Bc6 {[%clk 0:02:17]} 15. Qa7 {[%clk 0:00:35]}  Bb7 {[%clk 0:01:55]} 16. Nd4 {[%clk 0:00:29]}  Nfd7 {[%clk 0:01:37]} 17. Bb5 {[%clk 0:00:27]}  Nc5 {[%clk 0:01:27]} 18. O-O {[%clk 0:00:25]}  Nba6 {[%clk 0:01:22]} 19. N2b3 {[%clk 0:00:20]}  Nxc7 {[%clk 0:01:13]} 20. bxc7 {[%clk 0:00:19]}  Nxb3 {[%clk 0:01:14]} 21. Nxb3 {[%clk 0:00:17]}  Qxc7 {[%clk 0:01:07]} 22. Na5 {[%clk 0:00:17]}  Bc5 {[%clk 0:00:56]} 23. Qxb7 {[%clk 0:00:15]}  Qxa5 {[%clk 0:00:57]} 24. c4 {[%clk 0:00:12]}  d4 {[%clk 0:00:57]} 25. exd4 {[%clk 0:00:11]}  Bxd4 {[%clk 0:00:57]} 26. Qe4 {[%clk 0:00:11]}  Qd2 {[%clk 0:00:55]} 27. g3 {[%clk 0:00:11]}  g6 {[%clk 0:00:54]} 28. Kg2 {[%clk 0:00:11]}  Rd8 {[%clk 0:00:52]} 29. Qf3 {[%clk 0:00:10]}  Bc5 {[%clk 0:00:50]} 30. Ba4 {[%clk 0:00:09]}  Qa2 {[%clk 0:00:46]} 31. Rd1 {[%clk 0:00:07]}  Rxd1 {[%clk 0:00:37]} 32. Bxd1 {[%clk 0:00:06]}  Qxc4 {[%clk 0:00:37]} 33. Be2 {[%clk 0:00:06]}  Qd4 {[%clk 0:00:37]} 34. h4 {[%clk 0:00:06]}  h6 {[%clk 0:00:36]} 35. Bd3 {[%clk 0:00:05]}  Kg7 {[%clk 0:00:35]} 36. Qe2 {[%clk 0:00:05]}  Bb6 {[%clk 0:00:32]} 37. Be4 {[%clk 0:00:06]}  Qc5 {[%clk 0:00:32]} 38. Bb7 {[%clk 0:00:06]}  Ba7 {[%clk 0:00:31]} 39. Qb2+ {[%clk 0:00:06]}  Kg8 {[%clk 0:00:28]} 40. Bf3 {[%clk 0:00:06]}  Qd6 {[%clk 0:00:24]} 41. Qa2 {[%clk 0:00:06]}  Bd4 {[%clk 0:00:23]} 42. Qa8+ {[%clk 0:00:06]}  Kg7 {[%clk 0:00:23]} 43. Qa2 {[%clk 0:00:07]}  Qc5 {[%clk 0:00:23]} 44. Qe2 {[%clk 0:00:08]}  Qb6 {[%clk 0:00:23]} 45. Qc2 {[%clk 0:00:08]}  Qa7 {[%clk 0:00:23]} 46. Qe2 {[%clk 0:00:09]}  Qc5 {[%clk 0:00:24]} 47. Be4 {[%clk 0:00:09]}  f5 {[%clk 0:00:23]} 48. Bf3 {[%clk 0:00:08]}  Kf6 {[%clk 0:00:22]} 49. Qa2 {[%clk 0:00:07]}  g5 {[%clk 0:00:20]} 50. hxg5+ {[%clk 0:00:06]}  hxg5 {[%clk 0:00:21]} 51. g4 {[%clk 0:00:06]}  Qe5 {[%clk 0:00:09]} 52. Qe2 {[%clk 0:00:06]}  Qf4 {[%clk 0:00:09]} 53. gxf5 {[%clk 0:00:04]}  exf5 {[%clk 0:00:07]} 54. Bd5 {[%clk 0:00:05]}  Be5 {[%clk 0:00:05]} 55. Qh5 {[%clk 0:00:05]}  g4 {[%clk 0:00:04]} 56. Qf7+ {[%clk 0:00:02]}  Kg5 {[%clk 0:00:04]} 57. Qg8+ {[%clk 0:00:02]}  Kh6 {[%clk 0:00:03]} 58. Qe6+ {[%clk 0:00:02]}  Kg5 {[%clk 0:00:04]} 59. Qg8+ {[%clk 0:00:03]}  Kh6 {[%clk 0:00:04]} 60. Qe6+ {[%clk 0:00:02]}  Kg5 {[%clk 0:00:05]} 61. Qg8+ {[%clk 0:00:02]} 1/2-1/2


[Site "https://www.chess.com"]

[Event "Titled Tuesday Blitz July 11 Early 2023"]
[White "Turski, Bartlomiej"]
[Black "He, Anthony"]
[WhiteFideId "21810567"]
[BlackFideId "2088215"]
[WhiteElo "2896"]
[BlackElo "3003"]
[Result "1/2-1/2"]
[Round "8"]
[TimeControl "180+2"]
[Date "2023.07.11"]
[WhiteClock "0:00:22"]
[BlackClock "0:00:11"]
[Board "7"]

1. e4 {[%clk 0:02:51]}  c5 {[%clk 0:02:31]} 2. Nf3 {[%clk 0:02:30]}  e6 {[%clk 0:02:30]} 3. d4 {[%clk 0:02:30]}  cxd4 {[%clk 0:02:31]} 4. Nxd4 {[%clk 0:02:30]}  Nc6 {[%clk 0:02:31]} 5. Nc3 {[%clk 0:02:31]}  Qc7 {[%clk 0:02:31]} 6. Be3 {[%clk 0:02:30]}  a6 {[%clk 0:02:30]} 7. Be2 {[%clk 0:02:22]}  Nf6 {[%clk 0:02:30]} 8. Nxc6 {[%clk 0:02:22]}  bxc6 {[%clk 0:02:30]} 9. O-O {[%clk 0:02:22]}  d5 {[%clk 0:02:26]} 10. exd5 {[%clk 0:02:21]}  cxd5 {[%clk 0:02:24]} 11. Na4 {[%clk 0:02:21]}  Rb8 {[%clk 0:02:17]} 12. Rc1 {[%clk 0:02:21]}  e5 {[%clk 0:02:09]} 13. c4 {[%clk 0:02:05]}  d4 {[%clk 0:02:09]} 14. Bg5 {[%clk 0:02:05]}  Be7 {[%clk 0:01:55]} 15. b3 {[%clk 0:02:03]}  O-O {[%clk 0:01:54]} 16. c5 {[%clk 0:02:01]}  h6 {[%clk 0:01:48]} 17. Bh4 {[%clk 0:01:59]}  Rd8 {[%clk 0:01:44]} 18. Bc4 {[%clk 0:01:55]}  Bf5 {[%clk 0:01:39]} 19. Re1 {[%clk 0:01:51]}  a5 {[%clk 0:01:32]} 20. f3 {[%clk 0:01:44]}  Nh5 {[%clk 0:01:16]} 21. Bxe7 {[%clk 0:01:33]}  Qxe7 {[%clk 0:01:17]} 22. Bd3 {[%clk 0:01:33]}  Bxd3 {[%clk 0:01:14]} 23. Qxd3 {[%clk 0:01:34]}  Nf4 {[%clk 0:01:15]} 24. Qd2 {[%clk 0:01:33]}  Qg5 {[%clk 0:01:12]} 25. Kh1 {[%clk 0:01:34]}  d3 {[%clk 0:01:12]} 26. g3 {[%clk 0:01:30]}  Ne2 {[%clk 0:00:44]} 27. Qxg5 {[%clk 0:01:25]}  hxg5 {[%clk 0:00:45]} 28. Rcd1 {[%clk 0:01:25]}  f5 {[%clk 0:00:37]} 29. c6 {[%clk 0:01:22]}  Rbc8 {[%clk 0:00:36]} 30. Nc5 {[%clk 0:01:22]}  Rxc6 {[%clk 0:00:32]} 31. Rxd3 {[%clk 0:01:20]}  Rxd3 {[%clk 0:00:30]} 32. Nxd3 {[%clk 0:01:21]}  Rc2 {[%clk 0:00:30]} 33. Nxe5 {[%clk 0:01:13]}  Rxa2 {[%clk 0:00:30]} 34. Nc6 {[%clk 0:01:10]}  f4 {[%clk 0:00:28]} 35. g4 {[%clk 0:01:03]}  Rc2 {[%clk 0:00:20]} 36. Nxa5 {[%clk 0:01:00]}  Nd4 {[%clk 0:00:20]} 37. Rf1 {[%clk 0:01:00]}  Ra2 {[%clk 0:00:21]} 38. Nc4 {[%clk 0:00:59]}  Nxb3 {[%clk 0:00:21]} 39. Ne5 {[%clk 0:00:56]}  Re2 {[%clk 0:00:19]} 40. Nd3 {[%clk 0:00:49]}  Nd2 {[%clk 0:00:19]} 41. Rf2 {[%clk 0:00:44]}  Rxf2 {[%clk 0:00:18]} 42. Nxf2 {[%clk 0:00:44]}  Nxf3 {[%clk 0:00:18]} 43. Nh3 {[%clk 0:00:42]}  Kf7 {[%clk 0:00:18]} 44. Kg2 {[%clk 0:00:42]}  Nh4+ {[%clk 0:00:18]} 45. Kf2 {[%clk 0:00:43]}  Kg6 {[%clk 0:00:19]} 46. Ng1 {[%clk 0:00:43]}  Kf6 {[%clk 0:00:19]} 47. h3 {[%clk 0:00:42]}  Ng6 {[%clk 0:00:20]} 48. Nf3 {[%clk 0:00:42]}  Ne5 {[%clk 0:00:19]} 49. Nd4 {[%clk 0:00:43]}  Nd3+ {[%clk 0:00:19]} 50. Kg2 {[%clk 0:00:41]}  Nc5 {[%clk 0:00:19]} 51. Nf3 {[%clk 0:00:36]}  Ne4 {[%clk 0:00:18]} 52. Kh2 {[%clk 0:00:36]}  Ke6 {[%clk 0:00:17]} 53. Kg2 {[%clk 0:00:36]}  Kd5 {[%clk 0:00:17]} 54. h4 {[%clk 0:00:36]}  gxh4 {[%clk 0:00:16]} 55. Nxh4 {[%clk 0:00:37]}  g5 {[%clk 0:00:16]} 56. Nf5 {[%clk 0:00:37]}  Nd6 {[%clk 0:00:14]} 57. Ng7 {[%clk 0:00:30]}  Ke5 {[%clk 0:00:13]} 58. Kf3 {[%clk 0:00:28]}  Kf6 {[%clk 0:00:12]} 59. Nh5+ {[%clk 0:00:26]}  Ke5 {[%clk 0:00:12]} 60. Ng7 {[%clk 0:00:26]}  Ne4 {[%clk 0:00:11]} 61. Nf5 {[%clk 0:00:24]}  Nd2+ {[%clk 0:00:11]} 62. Kf2 {[%clk 0:00:24]}  Ne4+ {[%clk 0:00:11]} 63. Kf3 {[%clk 0:00:24]}  Nd6 {[%clk 0:00:11]} 64. Ng7 {[%clk 0:00:22]} 1/2-1/2


[Site "https://www.chess.com"]

[Event "Titled Tuesday Blitz July 11 Early 2023"]
[White "Deac, Bogdan-Daniel"]
[Black "Frolyanov, Dmitry"]
[WhiteFideId "1226380"]
[BlackFideId "4151976"]
[WhiteElo "2993"]
[BlackElo "2617"]
[Result "1-0"]
[Round "8"]
[TimeControl "180+2"]
[Date "2023.07.11"]
[WhiteClock "0:00:04"]
[BlackClock "0:00:39"]
[Board "8"]

1. d4 {[%clk 0:03:00]}  d5 {[%clk 0:02:54]} 2. Bf4 {[%clk 0:03:00]}  Nf6 {[%clk 0:02:52]} 3. e3 {[%clk 0:02:58]}  e6 {[%clk 0:02:52]} 4. Nf3 {[%clk 0:02:55]}  c5 {[%clk 0:02:52]} 5. c3 {[%clk 0:02:54]}  Nc6 {[%clk 0:02:52]} 6. Nbd2 {[%clk 0:02:54]}  Be7 {[%clk 0:02:50]} 7. Ne5 {[%clk 0:02:45]}  Nxe5 {[%clk 0:02:45]} 8. Bxe5 {[%clk 0:02:45]}  O-O {[%clk 0:02:40]} 9. Bd3 {[%clk 0:02:45]}  b6 {[%clk 0:02:39]} 10. Qf3 {[%clk 0:02:39]}  a5 {[%clk 0:02:36]} 11. Qh3 {[%clk 0:02:22]}  Ba6 {[%clk 0:02:34]} 12. Bc2 {[%clk 0:01:50]}  h6 {[%clk 0:02:33]} 13. g4 {[%clk 0:01:47]}  Nd7 {[%clk 0:02:29]} 14. Bf4 {[%clk 0:01:43]}  cxd4 {[%clk 0:02:28]} 15. exd4 {[%clk 0:01:21]}  Bg5 {[%clk 0:02:27]} 16. Bxg5 {[%clk 0:00:50]}  Qxg5 {[%clk 0:02:28]} 17. Nf3 {[%clk 0:00:37]}  Qf4 {[%clk 0:02:14]} 18. Qg3 {[%clk 0:00:27]}  Qxg3 {[%clk 0:02:12]} 19. hxg3 {[%clk 0:00:28]}  f6 {[%clk 0:02:11]} 20. Kd2 {[%clk 0:00:26]}  Rfd8 {[%clk 0:02:02]} 21. Rae1 {[%clk 0:00:21]}  Nf8 {[%clk 0:02:02]} 22. Nh4 {[%clk 0:00:21]}  Rab8 {[%clk 0:01:56]} 23. Ng6 {[%clk 0:00:18]}  Nxg6 {[%clk 0:01:51]} 24. Bxg6 {[%clk 0:00:19]}  Bc8 {[%clk 0:01:52]} 25. f4 {[%clk 0:00:19]}  b5 {[%clk 0:01:36]} 26. g5 {[%clk 0:00:19]}  b4 {[%clk 0:01:13]} 27. gxh6 {[%clk 0:00:18]}  bxc3+ {[%clk 0:01:13]} 28. Kxc3 {[%clk 0:00:19]}  gxh6 {[%clk 0:01:11]} 29. Rxh6 {[%clk 0:00:16]}  Kg7 {[%clk 0:01:11]} 30. Reh1 {[%clk 0:00:16]}  Ba6 {[%clk 0:01:11]} 31. b3 {[%clk 0:00:13]}  f5 {[%clk 0:01:03]} 32. g4 {[%clk 0:00:13]}  a4 {[%clk 0:00:55]} 33. gxf5 {[%clk 0:00:12]}  Rdc8+ {[%clk 0:00:55]} 34. Kb2 {[%clk 0:00:12]}  axb3 {[%clk 0:00:50]} 35. Rh7+ {[%clk 0:00:08]}  Kf8 {[%clk 0:00:49]} 36. axb3 {[%clk 0:00:07]}  exf5 {[%clk 0:00:48]} 37. Bxf5 {[%clk 0:00:06]}  Re8 {[%clk 0:00:49]} 38. Rh8+ {[%clk 0:00:05]}  Ke7 {[%clk 0:00:49]} 39. R1h7+ {[%clk 0:00:05]}  Kf6 {[%clk 0:00:47]} 40. Rxe8 {[%clk 0:00:04]}  Rxe8 {[%clk 0:00:48]} 41. Bc2 {[%clk 0:00:05]}  Bf1 {[%clk 0:00:46]} 42. Rh6+ {[%clk 0:00:05]}  Kg7 {[%clk 0:00:45]} 43. Rg6+ {[%clk 0:00:05]}  Kf7 {[%clk 0:00:45]} 44. Rg5 {[%clk 0:00:05]}  Re4 {[%clk 0:00:39]} 45. Bxe4 {[%clk 0:00:04]} 1-0


[Site "https://www.chess.com"]

[Event "Titled Tuesday Blitz July 11 Early 2023"]
[White "Erigaisi Arjun"]
[Black "Maximov, Dmitry"]
[WhiteFideId "35009192"]
[BlackFideId "14105659"]
[WhiteElo "3105"]
[BlackElo "2797"]
[Result "1-0"]
[Round "8"]
[TimeControl "180+2"]
[Date "2023.07.11"]
[WhiteClock "0:00:55"]
[BlackClock "0:00:33"]
[Board "9"]

1. c4 {[%clk 0:02:57]}  Nf6 {[%clk 0:03:00]} 2. Nc3 {[%clk 0:02:58]}  g6 {[%clk 0:03:00]} 3. e4 {[%clk 0:02:58]}  d6 {[%clk 0:03:00]} 4. d4 {[%clk 0:02:58]}  Bg7 {[%clk 0:03:01]} 5. Nf3 {[%clk 0:02:57]}  O-O {[%clk 0:03:01]} 6. h3 {[%clk 0:02:58]}  e5 {[%clk 0:03:01]} 7. d5 {[%clk 0:02:58]}  a5 {[%clk 0:03:00]} 8. Be3 {[%clk 0:02:59]}  Na6 {[%clk 0:03:00]} 9. g4 {[%clk 0:02:59]}  Nd7 {[%clk 0:02:55]} 10. h4 {[%clk 0:02:56]}  Ndc5 {[%clk 0:02:54]} 11. Bh3 {[%clk 0:02:41]}  c6 {[%clk 0:02:47]} 12. h5 {[%clk 0:02:38]}  cxd5 {[%clk 0:02:44]} 13. cxd5 {[%clk 0:02:32]}  Bd7 {[%clk 0:02:42]} 14. a4 {[%clk 0:02:22]}  Rc8 {[%clk 0:02:41]} 15. Kf1 {[%clk 0:02:18]}  Nb4 {[%clk 0:02:21]} 16. Ne1 {[%clk 0:02:11]}  gxh5 {[%clk 0:02:00]} 17. g5 {[%clk 0:02:07]}  f5 {[%clk 0:01:58]} 18. Qxh5 {[%clk 0:01:46]}  Be8 {[%clk 0:01:31]} 19. Qh4 {[%clk 0:01:43]}  Bg6 {[%clk 0:01:30]} 20. exf5 {[%clk 0:01:32]}  Rxf5 {[%clk 0:01:28]} 21. Bxf5 {[%clk 0:01:08]}  Bxf5 {[%clk 0:01:29]} 22. Bxc5 {[%clk 0:01:09]}  Rxc5 {[%clk 0:01:26]} 23. Ne4 {[%clk 0:01:10]}  Rxd5 {[%clk 0:01:07]} 24. Nf6+ {[%clk 0:01:10]}  Bxf6 {[%clk 0:01:04]} 25. gxf6 {[%clk 0:01:11]}  Qe8 {[%clk 0:00:58]} 26. Ra3 {[%clk 0:01:02]}  Bg6 {[%clk 0:00:48]} 27. Rg3 {[%clk 0:00:59]}  Kh8 {[%clk 0:00:39]} 28. Qh6 {[%clk 0:00:56]}  Qf7 {[%clk 0:00:35]} 29. Rxg6 {[%clk 0:00:55]}  Qxg6 {[%clk 0:00:33]} 30. Qxg6 {[%clk 0:00:55]} 1-0


[Site "https://www.chess.com"]

[Event "Titled Tuesday Blitz July 11 Early 2023"]
[White "Terry, Renato"]
[Black "Zakhartsov, Vladimir"]
[WhiteFideId "3803457"]
[BlackFideId "4145097"]
[WhiteElo "2976"]
[BlackElo "2912"]
[Result "0-1"]
[Round "8"]
[TimeControl "180+2"]
[Date "2023.07.11"]
[WhiteClock "0:00:02"]
[BlackClock "0:00:05"]
[Board "10"]

1. Nf3 {[%clk 0:03:00]}  Nf6 {[%clk 0:02:57]} 2. d4 {[%clk 0:03:01]}  d5 {[%clk 0:02:55]} 3. c4 {[%clk 0:03:01]}  e6 {[%clk 0:02:55]} 4. e3 {[%clk 0:03:00]}  c5 {[%clk 0:02:54]} 5. dxc5 {[%clk 0:03:00]}  Bxc5 {[%clk 0:02:53]} 6. a3 {[%clk 0:03:01]}  a5 {[%clk 0:02:51]} 7. Nc3 {[%clk 0:03:01]}  O-O {[%clk 0:02:51]} 8. Be2 {[%clk 0:03:01]}  Nc6 {[%clk 0:02:51]} 9. O-O {[%clk 0:03:02]}  d4 {[%clk 0:02:51]} 10. Na4 {[%clk 0:03:02]}  Ba7 {[%clk 0:02:51]} 11. c5 {[%clk 0:03:02]}  dxe3 {[%clk 0:02:49]} 12. Bxe3 {[%clk 0:03:03]}  Nd5 {[%clk 0:02:48]} 13. Bg5 {[%clk 0:03:03]}  f6 {[%clk 0:02:47]} 14. Bd2 {[%clk 0:03:03]}  Qe7 {[%clk 0:02:47]} 15. Qc2 {[%clk 0:02:57]}  e5 {[%clk 0:02:46]} 16. Rfe1 {[%clk 0:02:52]}  Be6 {[%clk 0:02:45]} 17. Bb5 {[%clk 0:02:51]}  Qf7 {[%clk 0:02:38]} 18. h3 {[%clk 0:02:38]}  Rac8 {[%clk 0:02:12]} 19. Rac1 {[%clk 0:02:37]}  Bb8 {[%clk 0:02:11]} 20. Bc4 {[%clk 0:02:31]}  Qh5 {[%clk 0:02:02]} 21. Nb6 {[%clk 0:02:17]}  Rcd8 {[%clk 0:02:01]} 22. Nxd5 {[%clk 0:02:01]}  Bxd5 {[%clk 0:02:00]} 23. Bxd5+ {[%clk 0:02:01]}  Rxd5 {[%clk 0:02:01]} 24. Qc4 {[%clk 0:01:54]}  Qf7 {[%clk 0:02:00]} 25. b4 {[%clk 0:01:53]}  axb4 {[%clk 0:01:56]} 26. axb4 {[%clk 0:01:54]}  h6 {[%clk 0:01:26]} 27. Bc3 {[%clk 0:01:40]}  Ne7 {[%clk 0:01:18]} 28. b5 {[%clk 0:01:32]}  Rc8 {[%clk 0:01:16]} 29. Bb4 {[%clk 0:01:32]}  Rd7 {[%clk 0:01:12]} 30. Nd2 {[%clk 0:01:06]}  Rd4 {[%clk 0:01:02]} 31. Qxf7+ {[%clk 0:01:01]}  Kxf7 {[%clk 0:01:03]} 32. Bc3 {[%clk 0:00:59]}  Ra4 {[%clk 0:00:59]} 33. Nb3 {[%clk 0:00:55]}  Ra3 {[%clk 0:00:53]} 34. Rb1 {[%clk 0:00:55]}  Nf5 {[%clk 0:00:41]} 35. Bb4 {[%clk 0:00:47]}  Ra4 {[%clk 0:00:38]} 36. Na5 {[%clk 0:00:47]}  Nd4 {[%clk 0:00:33]} 37. Nxb7 {[%clk 0:00:30]}  Nxb5 {[%clk 0:00:33]} 38. Red1 {[%clk 0:00:23]}  Nd4 {[%clk 0:00:32]} 39. Kf1 {[%clk 0:00:22]}  Ke6 {[%clk 0:00:29]} 40. Bc3 {[%clk 0:00:22]}  Ba7 {[%clk 0:00:20]} 41. Rbc1 {[%clk 0:00:12]}  Nb3 {[%clk 0:00:17]} 42. Rc2 {[%clk 0:00:12]}  Nxc5 {[%clk 0:00:13]} 43. Ba5 {[%clk 0:00:07]}  Nxb7 {[%clk 0:00:04]} 44. Rxc8 {[%clk 0:00:08]}  Rxa5 {[%clk 0:00:03]} 45. Rc6+ {[%clk 0:00:08]}  Kf5 {[%clk 0:00:03]} 46. Rc7 {[%clk 0:00:09]}  Nc5 {[%clk 0:00:03]} 47. Rxg7 {[%clk 0:00:09]}  Ne4 {[%clk 0:00:03]} 48. f3 {[%clk 0:00:08]}  Ng5 {[%clk 0:00:03]} 49. h4 {[%clk 0:00:06]}  Ne6 {[%clk 0:00:03]} 50. Rh7 {[%clk 0:00:06]}  Kf4 {[%clk 0:00:03]} 51. Rxh6 {[%clk 0:00:06]}  Kg3 {[%clk 0:00:01]} 52. Rg6+ {[%clk 0:00:06]}  Kh2 {[%clk 0:00:02]} 53. Rxf6 {[%clk 0:00:05]}  Nf4 {[%clk 0:00:03]} 54. Ke1 {[%clk 0:00:02]}  Ra2 {[%clk 0:00:02]} 55. Rd2 {[%clk 0:00:03]}  Ra1+ {[%clk 0:00:01]} 56. Rd1 {[%clk 0:00:04]}  Nxg2+ {[%clk 0:00:01]} 57. Kd2 {[%clk 0:00:03]}  Ra2+ {[%clk 0:00:01]} 58. Kc3 {[%clk 0:00:03]}  Nf4 {[%clk 0:00:01]} 59. h5 {[%clk 0:00:03]}  Ra3+ {[%clk 0:00:02]} 60. Kc4 {[%clk 0:00:03]}  Rxf3 {[%clk 0:00:02]} 61. h6 {[%clk 0:00:03]}  Rh3 {[%clk 0:00:03]} 62. Re1 {[%clk 0:00:02]}  Bd4 {[%clk 0:00:03]} 63. Re4 {[%clk 0:00:03]}  Kg3 {[%clk 0:00:03]} 64. Kb5 {[%clk 0:00:01]}  Kg4 {[%clk 0:00:03]} 65. Kc4 {[%clk 0:00:01]}  Kg5 {[%clk 0:00:03]} 66. Rfxf4 {[%clk 0:00:01]}  exf4 {[%clk 0:00:03]} 67. Kxd4 {[%clk 0:00:02]}  Rxh6 {[%clk 0:00:03]} 68. Re8 {[%clk 0:00:02]}  Rh1 {[%clk 0:00:03]} 69. Rg8+ {[%clk 0:00:01]}  Kf5 {[%clk 0:00:03]} 70. Kd3 {[%clk 0:00:02]}  Re1 {[%clk 0:00:03]} 71. Kd2 {[%clk 0:00:02]}  Re7 {[%clk 0:00:03]} 72. Kd3 {[%clk 0:00:02]}  f3 {[%clk 0:00:03]} 73. Kd2 {[%clk 0:00:02]}  Kf4 {[%clk 0:00:04]} 74. Kd3 {[%clk 0:00:03]}  f2 {[%clk 0:00:04]} 75. Kd2 {[%clk 0:00:02]}  Kf3 {[%clk 0:00:04]} 76. Rf8+ {[%clk 0:00:03]}  Kg2 {[%clk 0:00:04]} 77. Rg8+ {[%clk 0:00:04]}  Kf1 {[%clk 0:00:05]} 78. Rg6 {[%clk 0:00:04]}  Re5 {[%clk 0:00:04]} 79. Rg8 {[%clk 0:00:03]}  Rd5+ {[%clk 0:00:04]} 80. Kc2 {[%clk 0:00:03]}  Ke2 {[%clk 0:00:04]} 81. Re8+ {[%clk 0:00:03]}  Kf3 {[%clk 0:00:04]} 82. Rf8+ {[%clk 0:00:04]}  Ke3 {[%clk 0:00:05]} 83. Re8+ {[%clk 0:00:02]}  Kf4 {[%clk 0:00:05]} 0-1


[Site "https://www.chess.com"]